[Event "Titled Tuesday Blitz September 21 2021"]
[White "Manukyan, Artyom"]
[Black "Srihari L R"]
[WhiteFideId "13305786"]
[BlackFideId "46617116"]
[WhiteElo "2034"]
[BlackElo "2121"]
[Result "1-0"]
[Round "05"]
[TimeControl "180+1"]
[Date "2021.09.21"]
[WhiteClock "0:00:24"]
[BlackClock "0:00:23"]

1. e4 {[%clk 0:03:00]}  c5 {[%clk 0:02:59]} 2. Nc3 {[%clk 0:02:55]}  a6 {[%clk 0:02:55]} 3. g3 {[%clk 0:02:55]}  b5 {[%clk 0:02:50]} 4. Bg2 {[%clk 0:02:55]}  Bb7 {[%clk 0:02:49]} 5. d3 {[%clk 0:02:55]}  e6 {[%clk 0:02:42]} 6. Nh3 {[%clk 0:02:55]}  d5 {[%clk 0:02:38]} 7. exd5 {[%clk 0:02:53]}  Nf6 {[%clk 0:02:36]} 8. Nf4 {[%clk 0:02:52]}  b4 {[%clk 0:02:33]} 9. Ne4 {[%clk 0:02:00]}  Nxd5 {[%clk 0:02:28]} 10. Qh5 {[%clk 0:02:00]}  g6 {[%clk 0:02:20]} 11. Nxg6 {[%clk 0:01:57]}  fxg6 {[%clk 0:02:19]} 12. Qe5 {[%clk 0:01:57]}  Qe7 {[%clk 0:01:38]} 13. Qxh8 {[%clk 0:01:55]}  Nc6 {[%clk 0:01:38]} 14. Bg5 {[%clk 0:01:46]}  Qc7 {[%clk 0:01:28]} 15. O-O {[%clk 0:01:43]}  Nd4 {[%clk 0:01:23]} 16. c3 {[%clk 0:01:30]}  bxc3 {[%clk 0:01:17]} 17. bxc3 {[%clk 0:01:31]}  Nf5 {[%clk 0:01:14]} 18. c4 {[%clk 0:01:27]}  Kf7 {[%clk 0:01:05]} 19. Qxh7+ {[%clk 0:00:52]}  Bg7 {[%clk 0:01:04]} 20. cxd5 {[%clk 0:00:51]}  exd5 {[%clk 0:00:55]} 21. Bf4 {[%clk 0:00:51]}  Qc6 {[%clk 0:00:44]} 22. Ng5+ {[%clk 0:00:50]}  Kf6 {[%clk 0:00:40]} 23. Qh3 {[%clk 0:00:24]}  Rh8 {[%clk 0:00:38]} 24. Qg4 {[%clk 0:00:24]}  Ke7 {[%clk 0:00:38]} 25. Rfe1+ {[%clk 0:00:23]}  Kd7 {[%clk 0:00:37]} 26. Nf7 {[%clk 0:00:18]}  Qf6 {[%clk 0:00:30]} 27. Nxh8 {[%clk 0:00:16]}  Bxh8 {[%clk 0:00:29]} 28. Rab1 {[%clk 0:00:17]}  Bc6 {[%clk 0:00:26]} 29. Be5 {[%clk 0:00:17]}  Qf8 {[%clk 0:00:23]} 30. Bxh8 {[%clk 0:00:17]}  Qxh8 {[%clk 0:00:23]} 31. Qxg6 {[%clk 0:00:17]}  Nd6 {[%clk 0:00:23]} 32. Qe6+ {[%clk 0:00:16]}  Kc7 {[%clk 0:00:23]} 33. Bxd5 {[%clk 0:00:12]}  Bd7 {[%clk 0:00:22]} 34. Qe5 {[%clk 0:00:11]}  Qh6 {[%clk 0:00:18]} 35. Bg2 {[%clk 0:00:11]}  Bc8 {[%clk 0:00:17]} 36. Rec1 {[%clk 0:00:10]}  Kd8 {[%clk 0:00:16]} 37. Rxc5 {[%clk 0:00:09]}  Bd7 {[%clk 0:00:16]} 38. Rbc1 {[%clk 0:00:09]}  a5 {[%clk 0:00:15]} 39. Qg5+ {[%clk 0:00:09]}  Qxg5 {[%clk 0:00:15]} 40. Rxg5 {[%clk 0:00:10]}  a4 {[%clk 0:00:15]} 41. Ra5 {[%clk 0:00:10]}  a3 {[%clk 0:00:15]} 42. Rd5 {[%clk 0:00:10]}  Ne8 {[%clk 0:00:14]} 43. Bh3 {[%clk 0:00:10]}  Nf6 {[%clk 0:00:14]} 44. Rxd7+ {[%clk 0:00:11]}  Nxd7 {[%clk 0:00:13]} 45. Bxd7 {[%clk 0:00:12]}  Kxd7 {[%clk 0:00:14]} 46. Kf1 {[%clk 0:00:13]}  Kd6 {[%clk 0:00:15]} 47. Ke2 {[%clk 0:00:14]}  Kd5 {[%clk 0:00:16]} 48. Kd2 {[%clk 0:00:15]}  Kd4 {[%clk 0:00:17]} 49. Rc4+ {[%clk 0:00:15]}  Kd5 {[%clk 0:00:18]} 50. h4 {[%clk 0:00:16]}  Ke5 {[%clk 0:00:18]} 51. Kc3 {[%clk 0:00:16]}  Kf5 {[%clk 0:00:19]} 52. Kb3 {[%clk 0:00:16]}  Ke5 {[%clk 0:00:20]} 53. Kxa3 {[%clk 0:00:17]}  Kd5 {[%clk 0:00:21]} 54. Kb3 {[%clk 0:00:17]}  Ke5 {[%clk 0:00:22]} 55. Kc3 {[%clk 0:00:18]}  Kd5 {[%clk 0:00:23]} 56. a3 {[%clk 0:00:18]}  Ke5 {[%clk 0:00:24]} 57. Rc5+ {[%clk 0:00:17]}  Kd6 {[%clk 0:00:23]} 58. Kd4 {[%clk 0:00:18]}  Ke7 {[%clk 0:00:22]} 59. Rc6 {[%clk 0:00:17]}  Kd7 {[%clk 0:00:23]} 60. Kd5 {[%clk 0:00:18]}  Ke7 {[%clk 0:00:24]} 61. Rd6 {[%clk 0:00:18]}  Kf7 {[%clk 0:00:22]} 62. Ke5 {[%clk 0:00:19]}  Ke7 {[%clk 0:00:22]} 63. a4 {[%clk 0:00:19]}  Kf7 {[%clk 0:00:22]} 64. Re6 {[%clk 0:00:20]}  Kg7 {[%clk 0:00:22]} 65. Rf6 {[%clk 0:00:20]}  Kh7 {[%clk 0:00:22]} 66. Kf5 {[%clk 0:00:20]}  Kg7 {[%clk 0:00:23]} 67. a5 {[%clk 0:00:21]}  Kh7 {[%clk 0:00:23]} 68. Rg6 {[%clk 0:00:21]}  Kh8 {[%clk 0:00:23]} 69. Kf6 {[%clk 0:00:22]}  Kh7 {[%clk 0:00:23]} 70. Kf7 {[%clk 0:00:23]}  Kh8 {[%clk 0:00:23]} 71. Rh6# {[%clk 0:00:24]} 1-0


[Site "https://www.chess.com"]

[Event "Titled Tuesday Blitz September 21 2021"]
[White "Mirzoev, Azer"]
[Black "Tasev, Dejan"]
[WhiteFideId "13400304"]
[BlackFideId "936618"]
[WhiteElo "2525"]
[BlackElo "2253"]
[Result "0-1"]
[Round "05"]
[TimeControl "180+1"]
[Date "2021.09.21"]
[WhiteClock "0:00:08"]
[BlackClock "0:00:08"]

1. c4 {[%clk 0:02:23]}  Nf6 {[%clk 0:02:58]} 2. Nc3 {[%clk 0:02:22]}  g6 {[%clk 0:02:58]} 3. e4 {[%clk 0:02:22]}  d6 {[%clk 0:02:58]} 4. d4 {[%clk 0:02:19]}  Bg7 {[%clk 0:02:58]} 5. f3 {[%clk 0:02:08]}  O-O {[%clk 0:02:57]} 6. Be3 {[%clk 0:02:09]}  c5 {[%clk 0:02:57]} 7. Nge2 {[%clk 0:02:08]}  cxd4 {[%clk 0:02:56]} 8. Nxd4 {[%clk 0:02:08]}  Nbd7 {[%clk 0:02:54]} 9. Qd2 {[%clk 0:02:07]}  a6 {[%clk 0:02:54]} 10. Be2 {[%clk 0:02:07]}  Ne5 {[%clk 0:02:51]} 11. O-O {[%clk 0:02:08]}  Bd7 {[%clk 0:02:50]} 12. b3 {[%clk 0:02:06]}  Rc8 {[%clk 0:02:50]} 13. Rac1 {[%clk 0:02:07]}  Nc6 {[%clk 0:02:48]} 14. Rfd1 {[%clk 0:02:06]}  Nxd4 {[%clk 0:02:47]} 15. Bxd4 {[%clk 0:02:06]}  Bc6 {[%clk 0:02:44]} 16. Bf1 {[%clk 0:02:06]}  Nd7 {[%clk 0:02:39]} 17. Be3 {[%clk 0:02:04]}  Nc5 {[%clk 0:02:03]} 18. b4 {[%clk 0:02:02]}  Ne6 {[%clk 0:01:57]} 19. a3 {[%clk 0:01:59]}  a5 {[%clk 0:01:19]} 20. Nd5 {[%clk 0:01:55]}  axb4 {[%clk 0:01:15]} 21. axb4 {[%clk 0:01:54]}  Ra8 {[%clk 0:00:48]} 22. Kh1 {[%clk 0:01:42]}  Ra3 {[%clk 0:00:37]} 23. Bf2 {[%clk 0:01:35]}  Qd7 {[%clk 0:00:24]} 24. Bh4 {[%clk 0:01:31]}  Bxd5 {[%clk 0:00:23]} 25. exd5 {[%clk 0:01:30]}  Nc7 {[%clk 0:00:22]} 26. c5 {[%clk 0:01:24]}  dxc5 {[%clk 0:00:20]} 27. bxc5 {[%clk 0:01:24]}  Ra4 {[%clk 0:00:17]} 28. Bg3 {[%clk 0:01:22]}  Bf6 {[%clk 0:00:16]} 29. c6 {[%clk 0:01:21]}  bxc6 {[%clk 0:00:14]} 30. dxc6 {[%clk 0:01:22]}  Qc8 {[%clk 0:00:13]} 31. Qd7 {[%clk 0:01:20]}  Ra7 {[%clk 0:00:13]} 32. Qxc8 {[%clk 0:01:19]}  Rxc8 {[%clk 0:00:13]} 33. Rd7 {[%clk 0:01:18]}  Kg7 {[%clk 0:00:12]} 34. h3 {[%clk 0:01:18]}  h5 {[%clk 0:00:12]} 35. Bd3 {[%clk 0:01:01]}  h4 {[%clk 0:00:12]} 36. Bf2 {[%clk 0:01:00]}  Ra3 {[%clk 0:00:12]} 37. Be4 {[%clk 0:01:00]}  Ne6 {[%clk 0:00:12]} 38. c7 {[%clk 0:00:47]}  g5 {[%clk 0:00:10]} 39. Bb6 {[%clk 0:00:32]}  Rb3 {[%clk 0:00:07]} 40. Ba5 {[%clk 0:00:27]}  Rb5 {[%clk 0:00:06]} 41. Bb7 {[%clk 0:00:27]}  Rxb7 {[%clk 0:00:03]} 42. Kg1 {[%clk 0:00:17]}  Ra7 {[%clk 0:00:04]} 43. Bb6 {[%clk 0:00:17]}  Rb7 {[%clk 0:00:04]} 44. Ba5 {[%clk 0:00:17]}  Be5 {[%clk 0:00:05]} 45. Rxe7 {[%clk 0:00:15]}  Kf6 {[%clk 0:00:04]} 46. Rd7 {[%clk 0:00:15]}  Bf4 {[%clk 0:00:04]} 47. Rc2 {[%clk 0:00:14]}  Be3+ {[%clk 0:00:04]} 48. Kf1 {[%clk 0:00:14]}  Bf4 {[%clk 0:00:05]} 49. Ke2 {[%clk 0:00:14]}  Bg3 {[%clk 0:00:05]} 50. Ke3 {[%clk 0:00:13]}  Bf4+ {[%clk 0:00:05]} 51. Kf2 {[%clk 0:00:12]}  Rb5 {[%clk 0:00:05]} 52. Be1 {[%clk 0:00:11]}  Rxc7 {[%clk 0:00:05]} 53. Rdxc7 {[%clk 0:00:11]}  Bxc7 {[%clk 0:00:05]} 54. Bc3+ {[%clk 0:00:11]}  Kg6 {[%clk 0:00:05]} 55. Ra2 {[%clk 0:00:11]}  Bg3+ {[%clk 0:00:05]} 56. Ke2 {[%clk 0:00:11]}  Rb3 {[%clk 0:00:06]} 57. Bd2 {[%clk 0:00:10]}  Nf4+ {[%clk 0:00:06]} 58. Bxf4 {[%clk 0:00:10]}  Bxf4 {[%clk 0:00:06]} 59. Kf2 {[%clk 0:00:10]}  Rb4 {[%clk 0:00:05]} 60. Ke2 {[%clk 0:00:10]}  f6 {[%clk 0:00:06]} 61. Kd3 {[%clk 0:00:10]}  Rb6 {[%clk 0:00:06]} 62. Kd4 {[%clk 0:00:10]}  Rd6+ {[%clk 0:00:06]} 63. Ke4 {[%clk 0:00:10]}  Re6+ {[%clk 0:00:07]} 64. Kd5 {[%clk 0:00:09]}  Re1 {[%clk 0:00:07]} 65. Kd4 {[%clk 0:00:10]}  Be5+ {[%clk 0:00:07]} 66. Kd5 {[%clk 0:00:10]}  Rg1 {[%clk 0:00:07]} 67. Ke6 {[%clk 0:00:09]}  Re1 {[%clk 0:00:06]} 68. Kd5 {[%clk 0:00:09]}  Bg3 {[%clk 0:00:06]} 69. Kd4 {[%clk 0:00:09]}  Rf1 {[%clk 0:00:07]} 70. Ke3 {[%clk 0:00:09]}  Re1+ {[%clk 0:00:07]} 71. Kd4 {[%clk 0:00:09]}  Kf5 {[%clk 0:00:07]} 72. Ra5+ {[%clk 0:00:08]}  Be5+ {[%clk 0:00:07]} 73. Kd3 {[%clk 0:00:08]}  Rg1 {[%clk 0:00:07]} 74. Ra2 {[%clk 0:00:08]}  Kf4 {[%clk 0:00:07]} 75. Ra4+ {[%clk 0:00:07]}  Kg3 {[%clk 0:00:07]} 76. Rg4+ {[%clk 0:00:07]}  Kf2 {[%clk 0:00:08]} 77. f4 {[%clk 0:00:08]}  Bxf4 {[%clk 0:00:08]} 78. Ke4 {[%clk 0:00:08]}  Rxg2 {[%clk 0:00:08]} 79. Rxf4+ {[%clk 0:00:07]}  gxf4 {[%clk 0:00:07]} 80. Kxf4 {[%clk 0:00:08]}  Rg3 {[%clk 0:00:08]} 0-1


[Site "https://www.chess.com"]

[Event "Titled Tuesday Blitz September 21 2021"]
[White "Molina, Roberto Junio Brito"]
[Black "Shvedova, Alexandra"]
[WhiteFideId "2109450"]
[BlackFideId "54154782"]
[WhiteElo "2402"]
[BlackElo "1887"]
[Result "1/2-1/2"]
[Round "05"]
[TimeControl "180+1"]
[Date "2021.09.21"]
[WhiteClock "0:00:26"]
[BlackClock "0:00:36"]

1. d4 {[%clk 0:03:00]}  Nf6 {[%clk 0:03:00]} 2. c4 {[%clk 0:03:00]}  e6 {[%clk 0:03:00]} 3. Nf3 {[%clk 0:02:57]}  d5 {[%clk 0:03:00]} 4. Nc3 {[%clk 0:02:56]}  dxc4 {[%clk 0:03:00]} 5. e3 {[%clk 0:02:54]}  a6 {[%clk 0:03:00]} 6. a4 {[%clk 0:02:54]}  c5 {[%clk 0:02:59]} 7. Bxc4 {[%clk 0:02:54]}  Nc6 {[%clk 0:02:54]} 8. O-O {[%clk 0:02:53]}  cxd4 {[%clk 0:02:48]} 9. exd4 {[%clk 0:02:53]}  Be7 {[%clk 0:02:46]} 10. Bg5 {[%clk 0:02:52]}  O-O {[%clk 0:02:44]} 11. Re1 {[%clk 0:02:32]}  h6 {[%clk 0:02:40]} 12. Bh4 {[%clk 0:02:29]}  Nb4 {[%clk 0:02:38]} 13. Bxf6 {[%clk 0:02:13]}  Bxf6 {[%clk 0:02:36]} 14. Qd2 {[%clk 0:02:13]}  Bd7 {[%clk 0:02:19]} 15. Ne4 {[%clk 0:02:11]}  Be7 {[%clk 0:02:11]} 16. Ne5 {[%clk 0:02:10]}  Bc6 {[%clk 0:02:05]} 17. Nc3 {[%clk 0:01:54]}  Nd5 {[%clk 0:01:54]} 18. Nxc6 {[%clk 0:01:42]}  bxc6 {[%clk 0:01:54]} 19. Red1 {[%clk 0:01:37]}  Nxc3 {[%clk 0:01:41]} 20. Qxc3 {[%clk 0:01:33]}  Qb6 {[%clk 0:01:32]} 21. b3 {[%clk 0:01:31]}  Rfd8 {[%clk 0:01:29]} 22. Qf3 {[%clk 0:01:15]}  Rxd4 {[%clk 0:01:14]} 23. Rxd4 {[%clk 0:01:13]}  Qxd4 {[%clk 0:01:15]} 24. Rd1 {[%clk 0:01:13]}  Qb6 {[%clk 0:01:01]} 25. Rd7 {[%clk 0:01:05]}  Bf6 {[%clk 0:01:01]} 26. Qd3 {[%clk 0:00:56]}  a5 {[%clk 0:00:59]} 27. g3 {[%clk 0:00:53]}  Rd8 {[%clk 0:00:55]} 28. Rxd8+ {[%clk 0:00:49]}  Qxd8 {[%clk 0:00:56]} 29. Qxd8+ {[%clk 0:00:46]}  Bxd8 {[%clk 0:00:57]} 30. f4 {[%clk 0:00:45]}  Kf8 {[%clk 0:00:57]} 31. Kg2 {[%clk 0:00:45]}  Ke7 {[%clk 0:00:57]} 32. Kf3 {[%clk 0:00:45]}  Kd6 {[%clk 0:00:57]} 33. Ke4 {[%clk 0:00:42]}  Bb6 {[%clk 0:00:56]} 34. g4 {[%clk 0:00:42]}  f6 {[%clk 0:00:53]} 35. h4 {[%clk 0:00:39]}  Bf2 {[%clk 0:00:50]} 36. h5 {[%clk 0:00:38]}  Kc5 {[%clk 0:00:49]} 37. Bxe6 {[%clk 0:00:37]}  Kd6 {[%clk 0:00:49]} 38. Kf5 {[%clk 0:00:36]}  Be3 {[%clk 0:00:47]} 39. Bc4 {[%clk 0:00:35]}  Ke7 {[%clk 0:00:46]} 40. Be2 {[%clk 0:00:34]}  c5 {[%clk 0:00:45]} 41. Bc4 {[%clk 0:00:33]}  Bd2 {[%clk 0:00:45]} 42. Ke4 {[%clk 0:00:23]}  Bc1 {[%clk 0:00:45]} 43. Bf1 {[%clk 0:00:23]}  Kd6 {[%clk 0:00:44]} 44. Bb5 {[%clk 0:00:23]}  Bd2 {[%clk 0:00:44]} 45. Ba6 {[%clk 0:00:23]}  Bc1 {[%clk 0:00:44]} 46. Be2 {[%clk 0:00:24]}  Bd2 {[%clk 0:00:44]} 47. Kf5 {[%clk 0:00:23]}  Ke7 {[%clk 0:00:42]} 48. Bf3 {[%clk 0:00:24]}  Bc1 {[%clk 0:00:41]} 49. Bg2 {[%clk 0:00:24]}  Bd2 {[%clk 0:00:41]} 50. Bf1 {[%clk 0:00:24]}  Bc1 {[%clk 0:00:41]} 51. Bd3 {[%clk 0:00:23]}  Bd2 {[%clk 0:00:41]} 52. Ke4 {[%clk 0:00:23]}  Kd6 {[%clk 0:00:41]} 53. f5 {[%clk 0:00:23]}  Bc1 {[%clk 0:00:40]} 54. Be2 {[%clk 0:00:23]}  Bd2 {[%clk 0:00:40]} 55. Bf3 {[%clk 0:00:24]}  Bc1 {[%clk 0:00:40]} 56. Bd1 {[%clk 0:00:23]}  Bd2 {[%clk 0:00:40]} 57. Be2 {[%clk 0:00:23]}  Bc1 {[%clk 0:00:39]} 58. Bc4 {[%clk 0:00:23]}  Bd2 {[%clk 0:00:39]} 59. Bb5 {[%clk 0:00:24]}  Bc1 {[%clk 0:00:40]} 60. Bc4 {[%clk 0:00:25]}  Bd2 {[%clk 0:00:37]} 61. Bb5 {[%clk 0:00:25]}  Bc1 {[%clk 0:00:36]} 62. Bc4 {[%clk 0:00:26]} 1/2-1/2


[Site "https://www.chess.com"]

[Event "Titled Tuesday Blitz September 21 2021"]
[White "Nenezic, Marko"]
[Black "Svane, Rasmus"]
[WhiteFideId "912123"]
[BlackFideId "4657101"]
[WhiteElo "2481"]
[BlackElo "2643"]
[Result "0-1"]
[Round "05"]
[TimeControl "180+1"]
[Date "2021.09.21"]
[WhiteClock "0:00:05"]
[BlackClock "0:00:07"]

1. Nf3 {[%clk 0:03:00]}  d5 {[%clk 0:02:57]} 2. d4 {[%clk 0:03:01]}  e6 {[%clk 0:02:56]} 3. g3 {[%clk 0:03:00]}  Nf6 {[%clk 0:02:48]} 4. Bg2 {[%clk 0:03:00]}  b5 {[%clk 0:02:49]} 5. O-O {[%clk 0:02:56]}  Nbd7 {[%clk 0:02:48]} 6. a4 {[%clk 0:02:54]}  b4 {[%clk 0:02:48]} 7. c4 {[%clk 0:02:51]}  bxc3 {[%clk 0:02:49]} 8. bxc3 {[%clk 0:02:49]}  Ba6 {[%clk 0:02:29]} 9. Ba3 {[%clk 0:02:38]}  Bxa3 {[%clk 0:02:28]} 10. Nxa3 {[%clk 0:02:38]}  O-O {[%clk 0:02:27]} 11. c4 {[%clk 0:02:33]}  c5 {[%clk 0:02:19]} 12. Ne5 {[%clk 0:02:16]}  Nxe5 {[%clk 0:02:13]} 13. dxe5 {[%clk 0:02:15]}  Ne4 {[%clk 0:02:13]} 14. Qc2 {[%clk 0:01:56]}  Qc7 {[%clk 0:01:50]} 15. Bxe4 {[%clk 0:01:50]}  dxe4 {[%clk 0:01:49]} 16. Qxe4 {[%clk 0:01:50]}  Bb7 {[%clk 0:01:47]} 17. Qe3 {[%clk 0:01:50]}  a6 {[%clk 0:01:37]} 18. Rfd1 {[%clk 0:01:26]}  Rfd8 {[%clk 0:01:37]} 19. f3 {[%clk 0:01:26]}  h6 {[%clk 0:01:37]} 20. Nc2 {[%clk 0:01:22]}  Qa5 {[%clk 0:01:34]} 21. Rd6 {[%clk 0:01:18]}  Rxd6 {[%clk 0:01:27]} 22. exd6 {[%clk 0:01:19]}  Rd8 {[%clk 0:01:27]} 23. Qd3 {[%clk 0:01:15]}  Bc6 {[%clk 0:01:22]} 24. Ne3 {[%clk 0:01:10]}  Qb4 {[%clk 0:01:17]} 25. a5 {[%clk 0:01:06]}  Qb8 {[%clk 0:01:02]} 26. Rd1 {[%clk 0:01:06]}  Qb4 {[%clk 0:01:02]} 27. Qd2 {[%clk 0:01:00]}  Qb3 {[%clk 0:00:44]} 28. Kf2 {[%clk 0:00:57]}  f6 {[%clk 0:00:42]} 29. h4 {[%clk 0:00:52]}  h5 {[%clk 0:00:42]} 30. Ng2 {[%clk 0:00:50]}  Qxc4 {[%clk 0:00:37]} 31. Nf4 {[%clk 0:00:50]}  Be8 {[%clk 0:00:37]} 32. e3 {[%clk 0:00:36]}  Bf7 {[%clk 0:00:31]} 33. d7 {[%clk 0:00:27]}  e5 {[%clk 0:00:28]} 34. Qd6 {[%clk 0:00:20]}  exf4 {[%clk 0:00:23]} 35. Qe7 {[%clk 0:00:20]}  Qc2+ {[%clk 0:00:22]} 36. Ke1 {[%clk 0:00:20]}  fxg3 {[%clk 0:00:18]} 37. Qxd8+ {[%clk 0:00:17]}  Kh7 {[%clk 0:00:19]} 38. Qh8+ {[%clk 0:00:13]}  Kxh8 {[%clk 0:00:19]} 39. d8=Q+ {[%clk 0:00:14]}  Bg8 {[%clk 0:00:17]} 40. Qd2 {[%clk 0:00:13]}  Qc4 {[%clk 0:00:13]} 41. Qe2 {[%clk 0:00:11]}  Qxh4 {[%clk 0:00:13]} 42. Qg2 {[%clk 0:00:11]}  Be6 {[%clk 0:00:12]} 43. Rd8+ {[%clk 0:00:09]}  Kh7 {[%clk 0:00:12]} 44. Kd2 {[%clk 0:00:06]}  Qb4+ {[%clk 0:00:11]} 45. Kc1 {[%clk 0:00:04]}  Qc3+ {[%clk 0:00:07]} 46. Kb1 {[%clk 0:00:04]}  Qb3+ {[%clk 0:00:07]} 47. Kc1 {[%clk 0:00:04]}  Qxe3+ {[%clk 0:00:07]} 48. Rd2 {[%clk 0:00:04]}  h4 {[%clk 0:00:07]} 49. Qh1 {[%clk 0:00:04]}  Qf4 {[%clk 0:00:07]} 50. Qg2 {[%clk 0:00:04]}  c4 {[%clk 0:00:07]} 51. Qe2 {[%clk 0:00:04]}  c3 {[%clk 0:00:07]} 52. Qd3+ {[%clk 0:00:04]}  Bf5 {[%clk 0:00:07]} 53. Qxc3 {[%clk 0:00:05]}  g2 {[%clk 0:00:07]} 0-1


[Site "https://www.chess.com"]

[Event "Titled Tuesday Blitz September 21 2021"]
[White "Onyshchuk, Volodymyr"]
[Black "Pasti, Aron"]
[WhiteFideId "14114038"]
[BlackFideId "785857"]
[WhiteElo "2603"]
[BlackElo "2080"]
[Result "1/2-1/2"]
[Round "05"]
[TimeControl "180+1"]
[Date "2021.09.21"]
[WhiteClock "0:01:01"]
[BlackClock "0:00:08"]

1. e4 {[%clk 0:03:00]}  e5 {[%clk 0:02:49]} 2. Nf3 {[%clk 0:03:00]}  Nc6 {[%clk 0:02:48]} 3. Bc4 {[%clk 0:03:00]}  Bc5 {[%clk 0:02:47]} 4. d3 {[%clk 0:03:00]}  Nf6 {[%clk 0:02:44]} 5. c3 {[%clk 0:02:59]}  d6 {[%clk 0:02:40]} 6. Nbd2 {[%clk 0:02:55]}  O-O {[%clk 0:02:37]} 7. Bb3 {[%clk 0:02:49]}  Bb6 {[%clk 0:02:30]} 8. h3 {[%clk 0:02:46]}  d5 {[%clk 0:02:26]} 9. Qe2 {[%clk 0:02:41]}  Be6 {[%clk 0:02:17]} 10. Nf1 {[%clk 0:02:36]}  Na5 {[%clk 0:01:44]} 11. Bc2 {[%clk 0:02:24]}  dxe4 {[%clk 0:01:40]} 12. dxe4 {[%clk 0:02:23]}  Bc4 {[%clk 0:01:36]} 13. Qd2 {[%clk 0:02:23]}  Nc6 {[%clk 0:01:30]} 14. Ng3 {[%clk 0:02:19]}  Qe8 {[%clk 0:01:25]} 15. Qg5 {[%clk 0:02:09]}  h6 {[%clk 0:01:17]} 16. Qh4 {[%clk 0:02:08]}  Ne7 {[%clk 0:01:17]} 17. Nxe5 {[%clk 0:02:04]}  Ng6 {[%clk 0:00:43]} 18. Nxg6 {[%clk 0:02:03]}  fxg6 {[%clk 0:00:44]} 19. e5 {[%clk 0:01:33]}  Qxe5+ {[%clk 0:00:39]} 20. Be3 {[%clk 0:01:33]}  Bxe3 {[%clk 0:00:30]} 21. Qxc4+ {[%clk 0:01:33]}  Kh8 {[%clk 0:00:31]} 22. O-O {[%clk 0:01:11]}  Qxg3 {[%clk 0:00:20]} 23. fxe3 {[%clk 0:01:11]}  Qxe3+ {[%clk 0:00:21]} 24. Kh1 {[%clk 0:01:10]}  Nh5 {[%clk 0:00:18]} 25. Rxf8+ {[%clk 0:01:08]}  Rxf8 {[%clk 0:00:19]} 26. Bxg6 {[%clk 0:01:07]}  Ng3+ {[%clk 0:00:19]} 27. Kh2 {[%clk 0:01:06]}  Qe5 {[%clk 0:00:18]} 28. Kg1 {[%clk 0:01:01]}  Qe3+ {[%clk 0:00:18]} 29. Kh2 {[%clk 0:01:00]}  Qe5 {[%clk 0:00:19]} 30. Kg1 {[%clk 0:01:01]}  Qe3+ {[%clk 0:00:08]} 31. Kh2 {[%clk 0:01:01]} 1/2-1/2


[Site "https://www.chess.com"]

[Event "Titled Tuesday Blitz September 21 2021"]
[White "Ozates, Tuna"]
[Black "Gallegos Diaz, Carlos Alberto"]
[WhiteFideId "6354521"]
[BlackFideId "3900886"]
[WhiteElo "1872"]
[BlackElo "2362"]
[Result "1-0"]
[Round "05"]
[TimeControl "180+1"]
[Date "2021.09.21"]
[WhiteClock "0:00:58"]
[BlackClock "0:00:06"]

1. e4 {[%clk 0:02:48]}  d6 {[%clk 0:02:59]} 2. d4 {[%clk 0:02:46]}  Nf6 {[%clk 0:02:59]} 3. Nc3 {[%clk 0:02:47]}  c6 {[%clk 0:02:59]} 4. Nf3 {[%clk 0:02:44]}  Qa5 {[%clk 0:02:59]} 5. Bd3 {[%clk 0:02:45]}  e5 {[%clk 0:02:59]} 6. h3 {[%clk 0:02:43]}  Be7 {[%clk 0:02:58]} 7. O-O {[%clk 0:02:42]}  O-O {[%clk 0:02:58]} 8. Qe2 {[%clk 0:02:36]}  Nbd7 {[%clk 0:02:56]} 9. Bd2 {[%clk 0:02:30]}  Qc7 {[%clk 0:02:55]} 10. dxe5 {[%clk 0:02:23]}  dxe5 {[%clk 0:02:54]} 11. Nh4 {[%clk 0:02:23]}  Nc5 {[%clk 0:02:39]} 12. Kh1 {[%clk 0:02:18]}  Re8 {[%clk 0:02:08]} 13. f4 {[%clk 0:02:18]}  Bd6 {[%clk 0:01:47]} 14. f5 {[%clk 0:02:11]}  b5 {[%clk 0:01:42]} 15. g4 {[%clk 0:02:10]}  h6 {[%clk 0:01:35]} 16. g5 {[%clk 0:02:08]}  hxg5 {[%clk 0:01:33]} 17. Bxg5 {[%clk 0:02:09]}  Ncd7 {[%clk 0:01:25]} 18. Rg1 {[%clk 0:02:07]}  Kf8 {[%clk 0:01:19]} 19. Qg2 {[%clk 0:02:00]}  Bb7 {[%clk 0:01:11]} 20. Bxf6 {[%clk 0:01:57]}  gxf6 {[%clk 0:01:01]} 21. Qg7+ {[%clk 0:01:56]}  Ke7 {[%clk 0:01:01]} 22. Ng6+ {[%clk 0:01:56]}  Kd8 {[%clk 0:01:01]} 23. Qxf7 {[%clk 0:01:57]}  Nc5 {[%clk 0:00:51]} 24. Qxf6+ {[%clk 0:01:56]}  Kc8 {[%clk 0:00:45]} 25. a3 {[%clk 0:01:52]}  a6 {[%clk 0:00:39]} 26. h4 {[%clk 0:01:50]}  Kb8 {[%clk 0:00:25]} 27. h5 {[%clk 0:01:50]}  Ka7 {[%clk 0:00:23]} 28. h6 {[%clk 0:01:50]}  Nd7 {[%clk 0:00:23]} 29. Qg5 {[%clk 0:01:42]}  c5 {[%clk 0:00:21]} 30. h7 {[%clk 0:01:33]}  c4 {[%clk 0:00:21]} 31. Be2 {[%clk 0:01:33]}  Nc5 {[%clk 0:00:19]} 32. Bf3 {[%clk 0:01:30]}  Qxh7+ {[%clk 0:00:19]} 33. Kg2 {[%clk 0:01:30]}  Qg7 {[%clk 0:00:17]} 34. Rh1 {[%clk 0:01:27]}  Be7 {[%clk 0:00:13]} 35. Qg3 {[%clk 0:01:25]}  Bf6 {[%clk 0:00:12]} 36. Qf2 {[%clk 0:01:22]}  Qc7 {[%clk 0:00:11]} 37. Rh3 {[%clk 0:01:11]}  Qb6 {[%clk 0:00:11]} 38. Rah1 {[%clk 0:01:11]}  Rad8 {[%clk 0:00:11]} 39. Rh7 {[%clk 0:01:10]}  Rd7 {[%clk 0:00:09]} 40. Rxd7 {[%clk 0:01:01]}  Nxd7 {[%clk 0:00:10]} 41. Rh7 {[%clk 0:01:01]}  Qxf2+ {[%clk 0:00:08]} 42. Kxf2 {[%clk 0:01:01]}  Nc5 {[%clk 0:00:09]} 43. Nd5 {[%clk 0:00:58]}  Kb8 {[%clk 0:00:06]} 44. Nxf6 {[%clk 0:00:58]} 1-0


[Site "https://www.chess.com"]

[Event "Titled Tuesday Blitz September 21 2021"]
[White "Pajeken, Jakob Leon"]
[Black "Weetik, Vjacheslav"]
[WhiteFideId "12942839"]
[BlackFideId "4153472"]
[WhiteElo "2351"]
[BlackElo "2469"]
[Result "0-1"]
[Round "05"]
[TimeControl "180+1"]
[Date "2021.09.21"]
[WhiteClock "0:01:34"]
[BlackClock "0:00:47"]

1. c4 {[%clk 0:03:00]}  e6 {[%clk 0:02:58]} 2. Nf3 {[%clk 0:02:59]}  d5 {[%clk 0:02:58]} 3. d4 {[%clk 0:02:58]}  a6 {[%clk 0:02:58]} 4. g3 {[%clk 0:02:57]}  dxc4 {[%clk 0:02:42]} 5. Bg2 {[%clk 0:02:55]}  b5 {[%clk 0:02:30]} 6. Ne5 {[%clk 0:02:52]}  Ra7 {[%clk 0:02:29]} 7. a4 {[%clk 0:02:52]}  Bb7 {[%clk 0:02:22]} 8. e4 {[%clk 0:02:46]}  c6 {[%clk 0:01:38]} 9. O-O {[%clk 0:02:39]}  Nd7 {[%clk 0:01:36]} 10. Nf3 {[%clk 0:02:31]}  Ngf6 {[%clk 0:01:33]} 11. e5 {[%clk 0:02:30]}  Nd5 {[%clk 0:01:33]} 12. b3 {[%clk 0:02:31]}  c3 {[%clk 0:01:25]} 13. Bg5 {[%clk 0:02:25]}  Qb6 {[%clk 0:01:18]} 14. Na3 {[%clk 0:02:07]}  h6 {[%clk 0:01:04]} 15. Bc1 {[%clk 0:02:04]}  c5 {[%clk 0:01:02]} 16. Nc2 {[%clk 0:01:59]}  b4 {[%clk 0:00:54]} 17. a5 {[%clk 0:01:49]}  Qc7 {[%clk 0:00:53]} 18. dxc5 {[%clk 0:01:48]}  Bxc5 {[%clk 0:00:50]} 19. Qe2 {[%clk 0:01:41]}  O-O {[%clk 0:00:49]} 20. Nfd4 {[%clk 0:01:36]}  Qxe5 {[%clk 0:00:46]} 21. Qxe5 {[%clk 0:01:34]}  Nxe5 {[%clk 0:00:47]} 0-1


[Site "https://www.chess.com"]